Cogmind - Beta 9.2 @@@ ROGUE MODE // 2019.12.08 @ 05:56:00 Player: Xii Result: Self-destructed Performance ------------- Evolutions (3) 1500 Regions Visited (8) 1600 Robots Destroyed (74) 370 Value Destroyed (1902) 1902 Prototype IDs (7) 140 Alien Tech Used (0) 0 Bonus (4) 4 TOTAL SCORE: 5516 Bonus ------- Follower Combat Kills 180 Friendly Fire -176 Cogmind --------- Core Integrity 612/700 Matter 300/300 Energy 284/290 System Corruption 11% Temperature Cool (6) Movement Flying (30) Location -7/Factory Parts ------- > --- POWER (1) -------- Improved Deuterium Engine > --- PROPULSION (3) --- Cesium-ion Thruster Improved VTOL Module Improved VTOL Module > --- UTILITY (7) ------ Enhanced Optical Array Terrain Scan Processor Layered Light Armor Plating Hacking Suite System Shield > --- WEAPON (2) ------- (None) > --- INVENTORY (4) ---- Improved Ion Engine Cesium-ion Thruster Advanced Signal Interpreter Relay Coupler [NC] (20) Peak State ------------ > --- POWER ------------ Improved Ion Engine > --- PROPULSION ------- Cesium-ion Thruster Improved VTOL Module Improved VTOL Module > --- UTILITY ---------- Enhanced Optical Array Advanced Terrain Scanner Terrain Scan Processor Maneuvering Thrusters Medium Reflective Plating Hacking Suite System Shield > --- WEAPON ----------- EMP Blaster Mining Claw > --- INVENTORY -------- Cesium-ion Thruster High-capacity Matter Pod Relay Coupler [NC] [Rating: 38] Favorites ----------- Power Reinforced Ion Engine Engine Reinforced Ion Engine Power Core Light Nuclear Core Propulsion Aluminum Leg Treads Improved Treads Leg Aluminum Leg Wheel Armored Wheel Flight Unit Improved VTOL Module Utility High-capacity Storage Unit Device Heat Sink Storage High-capacity Storage Unit Processor Improved Targeting Computer Hackware Hacking Suite Protection Medium Armor Plating Weapon Heavy Assault Rifle Energy Gun Particle Gun Ballistic Gun Heavy Assault Rifle Ballistic Cannon Assault Cannon Launcher EMP Blaster Slashing Weapon Mining Claw Build | -11 -10 -10 -9 -9 -9 -8 -8 -7 ------- Run | Scr Mat Min Mat Min Exi Min Mat Fac Slots Evolved 6 | . . . 2 . . . 2 2 Power . | . . . . . . . . . Propulsion 1 | . . . 1 . . . . . Utility 5 | . . . 1 . . . 2 2 Weapon . | . . . . . . . . . Parts Attached 91 | 2 4 6 16 13 . 3 40 7 Power 7 | . . . 2 1 . . 3 1 Engine 6 | . . . 1 1 . . 3 1 Core 1 | . . . 1 . . . . . Reactor . | . . . . . . . . . Propulsion 23 | . . 1 5 5 . . 11 1 Treads 3 | . . . . . . . 3 . Leg 13 | . . 1 5 4 . . 3 . Wheel 3 | . . . . 1 . . 2 . Hover . | . . . . . . . . . Flight 4 | . . . . . . . 3 1 Utility 28 | 1 2 1 4 3 . 1 12 4 Device 8 | . . 1 2 1 . . 3 1 Storage 2 | 1 1 . . . . . . . Processor 7 | . . . 1 1 . 1 3 1 Hackware 3 | . . . . . . . 2 1 Protection 8 | . 1 . 1 1 . . 4 1 Artifact . | . . . . . . . . . Weapon 33 | 1 2 4 5 4 . 2 14 1 Energy Gun 10 | . 1 3 3 1 . 1 1 . Energy Cannon . | . . . . . . . . . Ballistic Gun 6 | 1 1 . 1 . . 1 2 . Ballistic Cannon 3 | . . . . . . . 3 . Launcher 11 | . . 1 1 2 . . 6 1 Special Weapon . | . . . . . . . . . Impact Weapon . | . . . . . . . . . Slashing Weapon 3 | . . . . 1 . . 2 . Piercing Weapon . | . . . . . . . . . Special Melee Weapon . | . . . . . . . . . Unidentified Prototypes . | . . . . . . . . . Parts Lost 14 | . . 2 5 1 . . 1 5 Power 1 | . . . 1 . . . . . Propulsion 2 | . . 1 1 . . . . . Utility 6 | . . . 1 1 . . 1 3 Weapon 5 | . . 1 2 . . . . 2 Highest Loss Streak 3 | . . 2 2 1 . . 1 3 Average Slot Usage (%) 98 | . 98 100 100 99 100 100 97 89 Engine 9 | . 14 14 4 11 11 11 8 7 Treads 2 | . . . . . . . 9 . Leg 21 | . 28 28 33 27 22 22 7 . Wheel 5 | . . . . 5 11 11 8 . Flight 1 | . . . . . . . . 23 Device 8 | . . 13 11 4 . . 17 11 Storage 11 | . 25 14 11 11 11 11 8 . Processor 7 | . . . . 11 11 11 8 12 Hackware 1 | . . . . . . . . 17 Protection 7 | . 2 . 10 6 11 11 8 7 Energy Gun 5 | . 12 13 11 6 . 4 . . Ballistic Gun 8 | . 14 14 11 11 11 11 1 . Launcher 4 | . . . . 3 11 6 10 . Naked Turns . | . . . . . . . . . Heaviest Build 62 | 17 44 44 45 56 56 56 62 18 Greatest Support 30 | 20 20 20 30 30 12 12 18 18 Greatest Overweight (x) 14 | . 2 2 1 4 4 4 14 . Average Overweight (x) 2 | . . 2 1 2 4 4 4 . Largest Inventory Capacity 14 | 8 14 12 12 12 12 12 12 4 Average Capacity 11 | 6 8 12 12 12 12 12 11 4 Most Carried 12 | 7 9 12 12 12 12 12 12 4 Average Carried 11 | 6 7 11 10 11 11 11 11 3 Final Capacity 12 | 8 12 12 12 12 12 12 4 4 Final Carried 12 | 7 8 12 12 12 12 12 4 4 Class Distribution -------------------- 74% | Mutant 20% | Scavenger-Mutant 3% | Hacker-Scout Dominant Class ---------------- Mutant | -10/Materials Mutant | -10/Mines Scavenger-Mutant | -9/Materials Mutant | -9/Mines Mutant | -9/Exiles Mutant | -8/Mines Mutant | -8/Materials Hacker-Scout | -7/Factory Resources | -11 -10 -10 -9 -9 -9 -8 -8 -7 ----------- Run | Scr Mat Min Mat Min Exi Min Mat Fac Matter Collected 1806 | 250 27 162 457 165 . 82 556 107 Remotely 86 | . . . . . . . 86 . Salvage Created 2399 | 95 81 153 738 169 . 360 803 . Parts 149 | 2 7 14 38 16 . 22 50 . Haulers Intercepted 3 | . . . 2 . . . 1 . Recyclers Shooed 2 | . . . 2 . . . . . Parts Field Recycled . | . . . . . . . . . Retrieved Matter . | . . . . . . . . . Parts Self-Destructed . | . . . . . . . . . Prevented . | . . . . . . . . . Kills | -11 -10 -10 -9 -9 -9 -8 -8 -7 ------- Run | Scr Mat Min Mat Min Exi Min Mat Fac Combat Hostiles Destroyed 57 | . 2 7 13 8 . 8 19 . Guns 22 | . 2 4 11 1 . 3 1 . Cannons 1 | . . . . . . . 1 . AOE 34 | . . 3 2 7 . 5 17 . Classes Destroyed 11 | 1 2 1 4 . . 1 2 . Worker 1 | . . . . . . . 1 . Builder 1 | . . . . . . . 1 . Hauler 3 | . . . 2 . . . 1 . Recycler 4 | 1 . . 3 . . . . . Operator 3 | . . . 1 . . . 2 . Watcher 4 | . 1 . 2 . . . 1 . Swarmer 22 | . . 3 3 6 . 3 7 . Grunt 23 | . 2 4 6 2 . 4 5 . Brawler 4 | . . . 1 . . 1 2 . Duelist 1 | . . . . . . 1 . . Sentry 8 | . . . 3 . . . 5 . Best Kill Streak 9 | 1 2 3 7 2 . 3 9 . Combat Bots Only 8 | . 2 3 6 2 . 3 8 . Max Kills in Single Turn 4 | 1 1 2 3 2 . 2 4 . Gunslinging . | . . . . . . . . . Exploded 4 | . . 2 2 2 . 2 4 . Melee . | . . . . . . . . . Uniques/NPCs Destroyed . | . . . . . . . . . Combat | -11 -10 -10 -9 -9 -9 -8 -8 -7 -------- Run | Scr Mat Min Mat Min Exi Min Mat Fac Damage Taken 2380 | . 45 552 646 200 . 168 451 318 Core 528 | . 15 138 143 29 . 8 107 88 Absorbed by Shields . | . . . . . . . . . Core Remaining (%) 68 | 100 . 38 . . . 55 80 . Volleys Fired 145 | 5 4 24 61 11 . 15 24 1 Largest 2 | 2 2 2 2 2 . 2 2 1 Hottest 88 | 40 88 88 88 88 . 68 77 33 Shots Fired 263 | 10 8 44 121 14 . 22 43 1 Gun 204 | 10 8 42 120 7 . 15 2 . Cannon 7 | . . . . . . . 7 . Launcher 52 | . . 2 1 7 . 7 34 1 Special . | . . . . . . . . . Kinetic 117 | 10 4 22 60 4 . 8 9 . Thermal 85 | . 4 20 60 1 . . . . Explosive 7 | . . 2 1 . . . 4 . Electromagnetic 54 | . . . . 9 . 14 30 1 Robot Hit Streak 14 | 3 4 8 14 6 . 14 13 4 Robot Miss Streak 5 | 3 5 4 5 1 . 1 2 . Penetration Max . | . . . . . . . . . Secondary Targets 2 | . . 1 1 . . . . . Max Gunslinging Chain 1 | . . 1 1 . . . . . Shots Hit Robots 195 | 5 6 34 98 7 . 18 26 1 Core Hits 159 | 2 7 17 65 13 . 16 38 1 Critical Hits 1 | . 1 . . . . . . . Critical Kills . | . . . . . . . . . Critical Parts Destroyed 1 | . 1 . . . . . . . Melee Attacks 34 | . . . . 6 . . 14 14 Impact . | . . . . . . . . . Slashing 34 | . . . . 6 . . 14 14 Piercing . | . . . . . . . . . Sneak Attacks 1 | . . . . 1 . . . . Combat Hostiles . | . . . . . . . . . Follow-up Attacks . | . . . . . . . . . Damage Inflicted 5083 | 71 92 758 1439 539 . 545 1587 52 Guns 2130 | 71 92 464 1229 103 . 143 28 . Cannons 73 | . . . . . . . 73 . Explosions 2763 | . . 294 192 341 . 402 1482 52 Melee 70 | . . . . 70 . . . . Ramming 47 | . . . 18 25 . . 4 . Kinetic 1033 | 71 59 231 465 42 . 64 101 . Thermal 1378 | . 33 233 764 116 . 74 158 . Explosive 1024 | . . 294 192 . . . 538 . Electromagnetic 1531 | . . . . 286 . 407 786 52 Impact . | . . . . . . . . . Slashing 70 | . . . . 70 . . . . Piercing . | . . . . . . . . . Highest Corruption . | . . . . . . . . . Average Corruption . | . . . . . . . . . Corruption Purged . | . . . . . . . . . Overload Shots . | . . . . . . . . . Overflow Damage 92 | . . . . 41 . . 51 . Projectiles . | . . . . . . . . . Explosions 62 | . . . . 11 . . 51 . Melee 30 | . . . . 30 . . . . Knockbacks . | . . . . . . . . . Impact . | . . . . . . . . . Kinetic . | . . . . . . . . . Secondary . | . . . . . . . . . Self-Inflicted Damage 108 | . . . . 26 . 47 35 . Shots 6 | . . . . 2 . 2 2 . Rammed 2 | . . . . 1 . . 1 . Targets Rammed 8 | . . . 3 4 . . 1 . Kicked 6 | . . . 3 3 . . . . Crushed . | . . . . . . . . . Highest Temperature 309 | . 54 309 33 54 . 84 108 2 Average Temperature 45 | . 23 96 8 22 . 30 46 2 Received Heat Transfer 816 | . 27 309 249 78 . 9 126 18 Siege Activations . | . . . . . . . . . Robots Corrupted . | . . . . . . . . . Combat Hostiles . | . . . . . . . . . Parts Fried 6 | . . . . 1 . . 5 . Impact Corruptions . | . . . . . . . . . Robots Melted . | . . . . . . . . . Combat Hostiles . | . . . . . . . . . Parts Melted . | . . . . . . . . . Heat Transferred 2078 | . 45 414 1132 237 . 100 150 . Parts Sabotaged . | . . . . . . . . . Parts Stolen . | . . . . . . . . . Parts Stripped . | . . . . . . . . . Power Chain Reactions 9 | . . . . 2 . 3 4 . Missiles Intercepted . | . . . . . . . . . Alert | -11 -10 -10 -9 -9 -9 -8 -8 -7 ------- Run | Scr Mat Min Mat Min Exi Min Mat Fac Peak Influence 397 | 5 95 135 397 334 . 158 278 263 Average Influence 136 | 2 26 80 198 193 . 84 120 187 Maximum Alert Level 1 | . . . 1 1 . . 1 1 Low Security (%) 69 | 100 100 100 39 46 . 100 73 58 Level 1 30 | . . . 60 53 . . 26 41 Level 2 . | . . . . . . . . . Level 3 . | . . . . . . . . . Level 4 . | . . . . . . . . . Level 5 . | . . . . . . . . . High Security . | . . . . . . . . . Max Security . | . . . . . . . . . Squads Dispatched 8 | . 3 1 2 1 . . . 1 Investigation 4 | . 1 1 . 1 . . . 1 Extermination . | . . . . . . . . . Reinforcement 4 | . 2 . 2 . . . . . Assault . | . . . . . . . . . Garrison . | . . . . . . . . . Intercept . | . . . . . . . . . Construction Impeded 1 | . . . 1 . . . . . Haulers Reinforced . | . . . . . . . . . Stealth | -11 -10 -10 -9 -9 -9 -8 -8 -7 --------- Run | Scr Mat Min Mat Min Exi Min Mat Fac Distress Signals 7 | . 1 . 4 . . . 1 1 Communications Jammed . | . . . . . . . . . Distress Signals . | . . . . . . . . . Times Spotted 107 | . 8 9 28 14 . 10 26 12 Peak Tracking Total 9 | . 4 3 7 3 . 3 9 7 Tactical Retreats 7 | . 1 . 1 . . 1 1 3 Traps | -11 -10 -10 -9 -9 -9 -8 -8 -7 ------- Run | Scr Mat Min Mat Min Exi Min Mat Fac Traps Triggered 5 | . 1 . . . . . 4 . Indirectly . | . . . . . . . . . Trap Hack Attempts . | . . . . . . . . . Triggered . | . . . . . . . . . Disarmed . | . . . . . . . . . Reprogrammed . | . . . . . . . . . Reused . | . . . . . . . . . Traps Extracted . | . . . . . . . . . Installed . | . . . . . . . . . Triggered . | . . . . . . . . . Machines | -11 -10 -10 -9 -9 -9 -8 -8 -7 ---------- Run | Scr Mat Min Mat Min Exi Min Mat Fac Machines Disabled 7 | . . . 1 3 . 1 2 . Max in Single Turn 1 | . . . 1 1 . 1 1 . Garrison Access 1 | . . . . . . . 1 . Machines Sabotaged . | . . . . . . . . . Garrisons Compromised . | . . . . . . . . . Overloaded Fab Kills . | . . . . . . . . . Fab Network Shutdowns . | . . . . . . . . . Hacking | -11 -10 -10 -9 -9 -9 -8 -8 -7 --------- Run | Scr Mat Min Mat Min Exi Min Mat Fac Machines Accessed 27 | . 5 1 3 1 . 1 12 4 Terminals 20 | . 3 1 2 1 . 1 9 3 Fabricators . | . . . . . . . . . Repair Stations . | . . . . . . . . . Recycling Units 4 | . 2 . . . . . 2 . Scanalyzers 1 | . . . 1 . . . . . Garrison Access 2 | . . . . . . . 1 1 Total Hacks 87 | . 14 4 17 2 . 2 35 13 Successful 50 | . 8 1 15 1 . 1 19 5 Failed 36 | . 6 3 2 . . 1 16 8 Catastrophic 6 | . 1 1 1 . . . 2 1 Database Lockouts 1 | . . . . 1 . . . . Manual 37 | . 2 4 4 2 . 2 17 6 Terminals 60 | . 7 4 5 2 . 2 30 10 Fabricators . | . . . . . . . . . Repair Stations . | . . . . . . . . . Recycling Units 9 | . 7 . . . . . 2 . Scanalyzers 12 | . . . 12 . . . . . Garrison Access 6 | . . . . . . . 3 3 Terminal Hacks 16 | . 3 1 1 1 . 1 7 2 Robot Analysis 3 | . . . . . . 1 2 . Prototype ID Bank 4 | . 1 1 . 1 . . 1 . Branch Access Points 2 | . . . . . . . 1 1 Terminal Index 1 | . . . . . . . . 1 Unreport Threat 3 | . 1 . . . . . 2 . Recall Reinforcements 1 | . . . 1 . . . . . Hauler Manifests 2 | . 1 . . . . . 1 . Fabricator Hacks . | . . . . . . . . . Repair Station Hacks . | . . . . . . . . . Recycling Unit Hacks 6 | . 5 . . . . . 1 . Process 1 | . 1 . . . . . . . Report Inventory 3 | . 2 . . . . . 1 . Retrieve Matter 1 | . 1 . . . . . . . Retrieve Components 1 | . 1 . . . . . . . Scanalyzer 12 | . . . 12 . . . . . Insert Component 5 | . . . 5 . . . . . Analyze 7 | . . . 7 . . . . . Garrison Access Hacks 1 | . . . . . . . 1 . Seal Access 1 | . . . . . . . 1 . Unauthorized Hacks 34 | . . . 5 . . . 22 7 Terminals 14 | . . . 2 . . . 10 2 Track 6 | . . . 1 . . . 5 . Assimilate 1 | . . . . . . . . 1 Botnet 7 | . . . 1 . . . 5 1 Fabricators . | . . . . . . . . . Repair Stations . | . . . . . . . . . Recycling Units . | . . . . . . . . . Scanalyzers . | . . . . . . . . . Garrison Access 1 | . . . . . . . . 1 Watchers 1 | . . . . . . . . 1 Data Cores Recovered . | . . . . . . . . . Used . | . . . . . . . . . Hacking Detections 26 | . 5 1 3 1 . 1 11 4 Full Trace Events 3 | . 1 1 . . . . . 1 Feedback Events . | . . . . . . . . . Feedback Blocked . | . . . . . . . . . Robot Schematics Acquired . | . . . . . . . . . Robots Built . | . . . . . . . . . Matter . | . . . . . . . . . Time . | . . . . . . . . . Total Robot Build Rating . | . . . . . . . . . Part Schematics Acquired 5 | . . . 5 . . . . . Parts Built . | . . . . . . . . . Matter . | . . . . . . . . . Time . | . . . . . . . . . Total Part Build Rating . | . . . . . . . . . Parts Repaired . | . . . . . . . . . Time . | . . . . . . . . . Parts Recycled . | . . . . . . . . . Recycled Matter 2 | . 2 . . . . . . . Retrieved Matter 2 | . 2 . . . . . . . Retrieved Components 3 | . 3 . . . . . . . Parts Scanalyzed 5 | . . . 5 . . . . . Part Schematics Acquired 5 | . . . 5 . . . . . Parts Damaged . | . . . . . . . . . Bothacking | -11 -10 -10 -9 -9 -9 -8 -8 -7 ------------ Run | Scr Mat Min Mat Min Exi Min Mat Fac Used RIF Installer . | . . . . . . . . . Robots Hacked . | . . . . . . . . . Non-combat . | . . . . . . . . . Combat . | . . . . . . . . . Robot Hacks Applied . | . . . . . . . . . Relay Couplers Released 2 | . . . . . . . 2 . Machine Destruction 2 | . . . . . . . 2 . Robots Rewired . | . . . . . . . . . Allies Hacked . | . . . . . . . . . Hacks Repelled . | . . . . . . . . . Allies | -11 -10 -10 -9 -9 -9 -8 -8 -7 -------- Run | Scr Mat Min Mat Min Exi Min Mat Fac Total Allies 4 | . . . . 3 . . . 1 Largest Group 3 | . . . . 3 3 3 . 1 Highest-Rated Group 40 | . . . . 40 40 40 . 26 Highest-Rated Ally 26 | . . . . 16 16 16 . 26 Total Orders 6 | . . . . 2 2 . . 2 STAY 2 | . . . . 1 1 . . . GOTO 2 | . . . . . . . . 2 FOLLOW 2 | . . . . 1 1 . . . Ally Attacks 34 | . . . . 26 . 8 . . Total Damage 410 | . . . . 306 . 104 . . Kills 8 | . . . . 8 . . . . Allies Corrupted . | . . . . . . . . . Allies Melted . | . . . . . . . . . Intel | -11 -10 -10 -9 -9 -9 -8 -8 -7 ------- Run | Scr Mat Min Mat Min Exi Min Mat Fac Robot Analysis Total 3 | . . . . . . 1 2 . Derelict Logs Recovered 5 | . . 2 . 3 . . . . Drone Launches . | . . . . . . . . . Drone Recoveries . | . . . . . . . . . Exploration | -11 -10 -10 -9 -9 -9 -8 -8 -7 ------------- Run | Scr Mat Min Mat Min Exi Min Mat Fac Turns Passed 4376 | 36 250 517 557 1015 285 484 1015 217 Spaces Moved 2815 | 12 161 238 212 659 219 328 598 388 Core 2 | . . . . . . . 2 . Treads . | . . . . . . . . . Legs 940 | 12 161 238 212 317 . . . . Wheels 1440 | . . . . 342 219 328 551 . Hover . | . . . . . . . . . Flight 433 | . . . . . . . 45 388 Fastest Speed 30 | 120 120 180 150 130 130 130 30 30 Average Speed 123 | 120 130 180 150 139 130 130 128 30 Slowest Speed 750 | 120 180 180 150 180 130 130 750 30 Overloaded Moves . | . . . . . . . . . Propulsion Burnouts . | . . . . . . . . . Robots Hopped 4 | . . . . . . . 4 . Cave-ins Triggered 1 | . . . . . . . . 1 Exploration Rate (%) 51 | 2 36 73 24 99 59 93 59 16 Regions Visited 8 Branch Regions 4 Pre-discovered Areas 2 | . . 2 . . . . . . Known Exits Taken . | . . . . . . . . . Unknown Exits Taken 8 | 1 1 1 1 1 1 1 1 . Scrap Searched 2 | . . 1 . 1 . . . . Spaces Dug 21 | . . . . 3 . . 9 9 Terrain Destroyed 149 | . . 29 12 28 . 14 57 9 Melee 21 | . . . . 3 . . 9 9 Projectile 3 | . . . . . . . 3 . AOE 125 | . . 29 12 25 . 14 45 . Actions | -11 -10 -10 -9 -9 -9 -8 -8 -7 --------- Run | Scr Mat Min Mat Min Exi Min Mat Fac Total 3379 | 22 198 284 334 728 220 362 771 460 Wait 162 | 3 10 4 16 19 . 16 53 41 Move 2799 | 11 160 237 211 658 218 327 590 387 Hop 3 | . . . . . . . 3 . Pick Up 61 | 1 10 9 15 6 1 1 14 4 Fast Attach 25 | 1 . . 1 2 . . 17 4 Attach 34 | . 3 4 10 4 . 1 10 2 Detach 2 | . . 1 . . . . 1 . Swap 32 | 1 1 2 5 7 . 2 13 1 Drop 73 | . 10 3 12 11 1 . 31 5 Fire 145 | 5 4 24 61 11 . 15 24 1 Melee 34 | . . . . 6 . . 14 14 Ram 1 | . . . . 1 . . . . Kick 6 | . . . 3 3 . . . . Crush 1 | . . . . . . . 1 . Escape Stasis 1 | . . . . . . . . 1 Rewire . | . . . . . . . . . Trap . | . . . . . . . . . Miscellaneous . | . . . . . . . . . Route ------- -11/Scrapyard -10/Materials -10/Mines (discovered 2 exits: *Mat x2) -9/Materials -9/Mines (discovered 3 exits: *Mat x2 / [*Exi]) -9/Exiles -8/Mines (discovered 2 exits: *Mat x2) -8/Materials -7/Factory (discovered 4 exits: Sto x2 / Low x2) History --------- Turn | Location | Event 3 | -11/Scrapyard | Discovered new exit (range 3) 37 | -11/Scrapyard | Entered Materials 223 | -10/Materials | Discovered new exit (range 11) 287 | -10/Materials | Entered Mines 300 | -10/Mines | Build established: Mutant 382 | -10/Mines | Received a Rocket Launcher from a helpful Derelict 519 | -10/Mines | Learned location of Storage (-7) 613 | -10/Mines | Discovered new exit (range 15) 722 | -10/Mines | Discovered new exit (range 7) 749 | -10/Mines | Core integrity fell below 50% 804 | -10/Mines | Entered Materials 804 | -9/Materials | Evolved 2 slots: Propulsion x1, Utility x1 1216 | -9/Materials | Build established: Scavenger-Mutant 1302 | -9/Materials | Discovered new exit (range 16) 1361 | -9/Materials | Entered Mines 1384 | -9/Mines | Discovered new exit (range 7) 1397 | -9/Mines | Assisted by bots powering up and referring to "LRC-V3" 1493 | -9/Mines | Met a Derelict bent on vengeance 1687 | -9/Mines | Central database locked down 1860 | -9/Mines | Learned Materials terminal intel 2017 | -9/Mines | Learned 2 Materials zone layouts 2103 | -9/Mines | Build established: Mutant 2297 | -9/Mines | Discovered new exit (range 8) 2367 | -9/Mines | Deemed a non-threat by the Exiles lab entrance 2367 | -9/Mines | Discovered new exit (range 5) 2376 | -9/Mines | Entered Exiles 2376 | -9/Exiles | Accompanied by 3 allies 2408 | -9/Exiles | Met 8R-AWN 2427 | -9/Exiles | Met EX-HEX 2494 | -9/Exiles | Met EX-DEC 2585 | -9/Exiles | Met EX-BIN 2644 | -9/Exiles | Discovered new exit (range 14) 2661 | -9/Exiles | Entered Mines 2661 | -8/Mines | Accompanied by 3 allies 2971 | -8/Mines | Discovered new exit (range 15) 3065 | -8/Mines | Discovered new exit (range 6) 3145 | -8/Mines | Entered Materials 3145 | -8/Materials | Evolved 2 slots: Utility x2 3147 | -8/Materials | Loaded intel: 12 terminal locations 3983 | -8/Materials | Destroyed 8 combat bots 4038 | -8/Materials | Discovered new exit (range 4) 4160 | -8/Materials | Entered Factory 4160 | -7/Factory | Evolved 2 slots: Utility x2 4161 | -7/Factory | Identified exit to Storage 4333 | -7/Factory | Identified exit to Lower Caves 4377 | -7/Factory | Crushed by falling debris 4377 | -7/Factory | Self-destructed Last Messages --------------- ALERT: Suspicious activity at Garrison Access F002. Dispatching Investigation squad. Maneuvering Thrusters destroyed. Acquired Hacking Suite. Connecting with Terminal... >>Access(Branch) Found 4 branch access points: (81,42) Storage (85,181) Storage (115,27) Lower Caves (66,81) Lower Caves Map updated. The unstable cave ceiling collapses. Crushed by falling debris. Mining Claw destroyed. System corrupted by crushing effect (+1). Adv. Terrain Scanner destroyed. System corrupted by crushing effect (+5). Hacking Suite destroyed. System corrupted by crushing effect (+5). Map ----- +----------------------------------------------------+ | | | | | | | | | ?????????????????????????#?#####?#???#?????#????#? | | ?????????????????????? ???## ?????#???####????? | | ???????????????????????????# ?#???##??????????? | | ????????????????????#? ?? ?# ! #?#???##??#??????? | | ?????????????????#??#??????# ################## | | ????????????? ?? ????#???#?# + | | ???????????????"?????#???#?# # ################ | | ????????????? ????? #? ????# # #########?#??#?? | | ??????????#? ?"???? ?#??#??# =# # #???#??? | | ????????????? ????????#??# # # #???#??? | | ???????????#??"??? ?# ?????###### # """ #?###### | | ?????????#????????????? ???# # + """"" #??# | | ?????????????????? ?? ??#?# # # """"" #### | | ???????????? ?? ????#??#??# # ############ | | ?????????#??#????#???????#?# + + # | | ??????????#?#? ? ?????????# #### """ """ # | | ???????????????????? ??????# ##?# """ """ # | | ???????????##????????????#?# = #??# """ """ # | | ????????????? ????????????## #??# # | | ?????????#??##???#?????#?##"######## !!! # | | ???????????????????#???###########?# !!! # | | ????????????#???????????#@## ?# !! ! # | | ?????????????#?????#???# ### ##+#########+## | | ???????????????????#?#?##??# | | ???????????? ? ??????????## | | ?????????????? ?? ??? ???## | | ????????????? ???????????# [ ##+#########"## | | ???????? ??????? #???> ??# ?# ##? | | ???????????? "??? ???? ? ??#?# #?# ! #?? | | ????????? ???"?????????? ????# ### """"""" ##? | | ????????? ?????#?????#???#???# #?# """"""" #?? | | ????????????????????#??#??#??# ### """"""" = #?? | | ?????????????????????? #??#??# ### """"""" ##? | | ??????????????????##???####??# ### #?? | | ???????????????#?#??#????#??## "#####"########## | | ?????????????#?? ??#?? ????#?# # #??? | | ????????????????? ?? ????##?## # #??? | | ????????????????? ?? ????#?# # ##?# | | ?????????????????????????????# # #?## | | ?????????????????????????????# # #?## | | ???????????????#?????#?????#?# # #??# | | ???????????????????? ? ???### # #??# | | ?????????????????? ???? ???#?# # #?## | | ?????????????????? ????????#?# # #??? | | ??????????????????????? ? ???# # #??? | | ?????????????????????? ??????#w + ##?? | +----------------------------------------------------+ Best States ------------- Heat Dissipation 45 Energy Generation 16 Energy Capacity 290 Matter Stores 300 Matter Capacity 300 Sight Range 22 Terrain Scan Range 20 Terrain Scan Density 85 Armor Coverage 225 Resistance: TH 15 Utility Shielding 33 Evasion (%) 70 Targeting Accuracy 8 Recoil Reduction 2 Offensive Hacking 20 Defensive Hacking 10 Item Schematics ----------------- Rocket Launcher | -9/Materials | Scanalyzed Imp. Signal Interpreter | -9/Materials | Scanalyzed Hpw. Tractor Beam | -9/Materials | Scanalyzed Particle Charger | -9/Materials | Scanalyzed Heat Sink | -9/Materials | Scanalyzed Robot Schematics ------------------ None Fabricated ------------ Nothing Alien Tech Used ----------------- None Achievements -------------- None Challenges ------------ None Game ------ Seed LaserDamperSword Manual? 0 Play Time 01:34:26 Cumulative 112.6 hours Start 2019.12.07 @ 08:35:49 End 2019.12.08 @ 05:56:00 Sessions 3 Manual Loads 0 Difficulty Rogue Special Mode None Game No. 44 Rogue 44 Adventurer 0 Explorer 0 Win Type - Total 9 Types 2/0/2/5/0/0/0 Lore% 64 Gallery% 58 Achievement% 52 Wizard Run 0 Options --------- ASCII 0 Keyboard 0 Movement Mouse Keybinds 0 Fullscreen 1 Font 18/SmallcapsGlow Map View 76x50 Tactical HUD 1 Map Filters NONE Filters NONE Steam 0 RUN: a8227ed5-e7e3-4d2b-852a-ffde79b01b4e